fUSD/lending_fUSD_20240718
["ID","MTS","AMOUNT","RATE_DAILY","PERIOD"]
[332504940,1721278286472,-1332.14,0.00022739,2]
[332504941,1721278286483,-694.43,0.00022739,2]
[332504942,1721278286494,-1424.65,0.00022739,2]
[332504943,1721278286505,-500.0,0.00022739,2]
[332504944,1721278286514,-504.19415765,0.00022739,2]
[332504945,1721278286523,-275.3722,0.00022739,7]
[332504946,1721278286533,-814.14,0.00022739,2]
[332504947,1721278286543,-500.0,0.00022739,2]
[332504948,1721278286554,-275.3722,0.00022739,7]
[332504949,1721278286563,-534.83157277,0.00022739,2]
[332504950,1721278286572,-500.0,0.00022739,2]
[332504951,1721278286581,-686.13,0.00022739,2]
[332504952,1721278286591,-665.3,0.00022739,2]
[332504953,1721278286601,-1725.67,0.00022739,2]
[332504954,1721278286610,-309.16078992,0.00022739,2]
[332504955,1721278286619,-500.0,0.00022739,2]
[332504956,1721278286628,-907.71,0.00022739,2]
[332504957,1721278286637,-500.0,0.00022739,2]
[332504958,1721278286646,-500.0,0.00022739,2]
[332504959,1721278286655,-500.0,0.00022739,2]
[332504960,1721278286664,-151.0,0.00022739,7]
[332504961,1721278286673,-682.42,0.00022739,2]
[332504962,1721278286682,-503.58824492,0.00022739,2]
[332504963,1721278286691,-539.26,0.00022739,2]
[332504964,1721278286701,-500.0,0.00022739,2]
[332504965,1721278286710,-994.42,0.00022739,2]
[332504966,1721278286719,-742.88,0.00022739,2]
[332504967,1721278286728,-151.0,0.00022739,7]
[332504968,1721278286737,-588.79,0.00022739,2]
[332504969,1721278286746,-500.0,0.00022739,2]
[332504970,1721278286755,-500.0,0.00022739,2]
[332504971,1721278286764,-164.12806056,0.00022739,2]
[332504972,1721278286773,-500.0,0.00022739,2]
[332504973,1721278286782,-500.0,0.00022739,2]
[332504974,1721278286791,-516.2,0.00022739,2]
[332504975,1721278286800,-590.38,0.00022739,2]
[332504976,1721278286809,-1470.62,0.00022739,2]
[332504977,1721278286818,-503.68579693,0.00022739,2]
[332504978,1721278286827,-500.0,0.00022739,2]
[332504979,1721278286837,-1484.14,0.00022739,2]
[332504980,1721278286846,-647.32,0.00022739,2]
[332504981,1721278286855,-500.0,0.00022739,2]
[332504982,1721278286864,-721.67,0.00022739,2]
[332504983,1721278286873,-500.0,0.00022739,2]
[332504984,1721278286882,-500.0,0.00022739,2]
[332504985,1721278286892,-1199.03,0.00022739,2]
[332504986,1721278286904,-500.0,0.00022739,2]
[332504987,1721278286915,-673.34,0.00022739,2]
[332504988,1721278286926,-503.89267748,0.00022739,2]
[332504989,1721278286937,-1064.51,0.00022739,2]
[332504990,1721278286947,-500.0,0.00022739,2]
[332504991,1721278286957,-616.153764,0.00022739,7]
[332504992,1721278286966,-500.0,0.00022739,2]
[332504993,1721278286976,-787.22,0.00022739,2]
[332504994,1721278286987,-500.0,0.00022739,2]
[332504995,1721278286998,-1277.65,0.00022739,2]
[332504996,1721278287007,-616.153764,0.00022739,7]
[332504997,1721278287017,-680.26,0.00022739,2]
[332504998,1721278287028,-500.0,0.00022739,2]
[332504999,1721278287039,-500.0,0.00022739,2]
[332505000,1721278287052,-503.49574192,0.00022739,2]
[332505001,1721278287061,-500.0,0.00022739,2]
[332505002,1721278287071,-520.62943729,0.00022739,2]
[332505003,1721278287080,-1034.23,0.00022739,2]
[332505004,1721278287089,-1588.53,0.00022739,2]
[332505005,1721278287099,-502.47969564,0.00022739,2]
[332505006,1721278287108,-500.0,0.00022739,2]
[332505007,1721278287117,-1105.89,0.00022739,2]
[332505008,1721278287128,-1040.13,0.00022739,2]
[332505009,1721278287138,-503.0411811,0.00022739,2]
[332505010,1721278287149,-500.0,0.00022739,2]
[332505011,1721278287160,-504.75291932,0.00022739,2]
[332505012,1721278287170,-500.0,0.00022739,2]
[332505013,1721278287295,-500.0,0.00022739,2]
[332505014,1721278287306,-500.0,0.00022739,2]
[332505015,1721278287318,-500.0,0.00022739,2]
[332505016,1721278287327,-807.25,0.00022739,2]
[332505017,1721278287339,-500.0,0.00022739,2]
[332505018,1721278287350,-503.47598225,0.00022739,2]
[332505019,1721278287359,-500.0,0.00022739,2]
[332505020,1721278287368,-515.67498796,0.00022739,2]
[332505021,1721278287381,-503.18643766,0.00022739,2]
[332505022,1721278287391,-695.08,0.00022739,2]
[332505023,1721278287401,-508.70572318,0.00022739,2]
[332505024,1721278287411,-1723.84,0.00022739,2]
[332505025,1721278287420,-795.46,0.00022739,2]
[332505026,1721278287430,-577.35647991,0.00022739,2]
[332505027,1721278287439,-500.0,0.00022739,2]
[332505028,1721278287448,-1595.33,0.00022739,2]
[332505029,1721278287457,-505.34,0.00022739,2]
[332505030,1721278287468,-501.68640876,0.00022739,2]
[332505031,1721278287480,-794.76,0.00022739,2]
[332505032,1721278287489,-758.81,0.00022739,2]
[332505033,1721278287498,-831.59,0.00022739,2]
[332505034,1721278287508,-502.101142,0.00022739,2]
[332505035,1721278287517,-1725.93,0.00022739,2]
[332505036,1721278287526,-631.15,0.00022739,2]
[332505037,1721278287537,-533.582287,0.00022739,2]
[332505038,1721278287547,-258.25424221,0.00022739,2]
[332505039,1721278287557,-1297.16,0.00022739,2]
[332505040,1721278287567,-872.0,0.00022739,2]
[332505041,1721278287578,-500.0,0.00022739,2]
[332505042,1721278287587,-500.0,0.00022739,2]
[332505043,1721278287597,-1353.19,0.00022739,2]
[332505044,1721278287606,-612.23,0.00022739,2]
[332505045,1721278287615,-500.0,0.00022739,2]
[332505046,1721278287624,-500.0,0.00022739,2]
[332505047,1721278287634,-500.0,0.00022739,2]
[332505048,1721278287643,-500.0,0.00022739,2]
[332505049,1721278287653,-500.0,0.00022739,2]
[332505050,1721278287663,-927.57,0.00022739,2]
[332505051,1721278287672,-571.85280264,0.00022739,2]
[332505052,1721278287681,-500.0,0.00022739,2]
[332505053,1721278287690,-502.87257138,0.00022739,2]
[332505054,1721278287699,-171.338137,0.00022739,7]
[332505055,1721278287708,-500.0,0.00022739,2]
[332505056,1721278287717,-500.0,0.00022739,2]
[332505057,1721278287727,-500.0,0.00022739,2]
[332505058,1721278287737,-171.338137,0.00022739,7]
[332505059,1721278287747,-502.48043703,0.00022739,2]
[332505060,1721278287756,-841.69,0.00022739,2]
[332505061,1721278287766,-3170.55,0.00022739,2]
[332505062,1721278287775,-393.60209849,0.00022739,2]
[332505063,1721278287784,-500.0,0.00022739,2]
[332505064,1721278287793,-500.0,0.00022739,2]
[332505065,1721278287802,-505.60297679,0.00022739,2]
[332505066,1721278287812,-500.0,0.00022739,2]
[332505067,1721278287822,-618.15924228,0.00022739,2]
[332505068,1721278287831,-1011.29,0.00022739,2]
[332505069,1721278287840,-500.0,0.00022739,2]
[332505070,1721278287850,-500.0,0.00022739,2]
[332505071,1721278287859,-500.0,0.00022739,2]
[332505072,1721278287868,-500.0,0.00022739,2]
[332505073,1721278287877,-563.9,0.00022739,2]
[332505074,1721278287887,-500.0,0.00022739,2]
[332505075,1721278287896,-564.03,0.00022739,2]
[332505076,1721278287907,-826.8,0.00022739,2]
[332505077,1721278287916,-1015.25,0.00022739,2]
[332505078,1721278287926,-501.8976163,0.00022739,2]
[332505079,1721278287936,-503.1438848,0.00022739,2]
[332505080,1721278287945,-557.71,0.00022739,2]
[332505081,1721278287955,-500.0,0.00022739,2]
[332505082,1721278287964,-491.32,0.00022739,2]
[332505083,1721278287973,-504.19497024,0.00022739,2]
[332505084,1721278287982,-956.06,0.00022739,2]
[332505085,1721278287992,-500.0,0.00022739,2]
[332505086,1721278288001,-500.0,0.00022739,2]
[332505087,1721278288010,-501.15817877,0.00022739,2]
[332505088,1721278288020,-500.0,0.00022739,2]
[332505089,1721278288029,-500.0,0.00022739,2]
[332505090,1721278288038,-501.16135891,0.00022739,2]
[332505091,1721278288051,-1870.76,0.00022739,2]
[332505092,1721278288060,-501.90936657,0.00022739,2]
[332505093,1721278288070,-1135.15,0.00022739,2]
[332505094,1721278288079,-672.48,0.00022739,2]
[332505095,1721278288090,-504.7674109,0.00022739,2]
[332505096,1721278288099,-1850.38,0.00022739,2]
[332505097,1721278288109,-575.15922968,0.00022739,2]
[332505098,1721278288119,-500.0,0.00022739,2]
[332505099,1721278288131,-503.74091912,0.00022739,2]
[332505100,1721278288141,-503.18654178,0.00022739,2]
[332505101,1721278288150,-500.0,0.00022739,2]
[332505102,1721278288159,-542.87,0.00022739,2]
[332505103,1721278288169,-891.59,0.00022739,2]
[332505104,1721278288178,-500.0,0.00022739,2]
[332505105,1721278288187,-502.41606821,0.00022739,2]
[332505106,1721278288196,-297.609871,0.00022739,7]
[332505107,1721278288205,-590.25,0.00022739,2]
[332505108,1721278288215,-500.0,0.00022739,2]
[332505109,1721278288224,-500.0,0.00022739,2]
[332505110,1721278288234,-952.72,0.00022739,2]
[332505111,1721278288243,-316.44447022,0.00022739,2]
[332505112,1721278288253,-500.0,0.00022739,2]
[332505113,1721278288262,-502.53724075,0.00022739,2]
[332505114,1721278288272,-1004.9,0.00022739,2]
[332505115,1721278288281,-500.0,0.00022739,2]
[332505116,1721278288290,-1400.09,0.00022739,2]
[332505117,1721278288300,-506.18397632,0.00022739,2]
[332505118,1721278288309,-500.0,0.00022739,2]
[332505119,1721278288319,-151.0,0.00022739,7]
[332505120,1721278288329,-2203.35,0.00022739,2]
[332505121,1721278288339,-503.46063989,0.00022739,2]
[332505122,1721278288349,-500.0,0.00022739,2]
[332505123,1721278288359,-502.27913108,0.00022739,2]
[332505124,1721278288370,-611.5,0.00022739,2]
[332505125,1721278288380,-500.0,0.00022739,2]
[332505126,1721278288390,-151.0,0.00022739,7]
[332505127,1721278288400,-500.0,0.00022739,2]
[332505128,1721278288410,-500.0,0.00022739,2]
[332505129,1721278288419,-482.88124203,0.00022739,2]
[332505130,1721278288430,-565.19675301,0.00022739,2]
[332505131,1721278288439,-1023.96,0.00022739,2]
[332505132,1721278288449,-503.95924295,0.00022739,2]
[332505133,1721278288459,-500.0,0.00022739,2]
[332505134,1721278288469,-843.49,0.00022739,2]
[332505135,1721278288479,-1076.5,0.00022739,2]
[332505136,1721278288490,-1418.1,0.00022739,2]
[332505137,1721278288500,-506.83865184,0.00022739,2]
[332505138,1721278288510,-603.76,0.00022739,2]
[332505139,1721278288519,-504.1092922,0.00022739,2]
[332505140,1721278288528,-796.62,0.00022739,2]
[332505141,1721278288537,-500.0,0.00022739,2]
[332505142,1721278288547,-500.0,0.00022739,2]
[332505143,1721278288557,-501.86409145,0.00022739,2]
[332505144,1721278288567,-500.0,0.00022739,2]
[332505145,1721278288577,-957.75,0.00022739,2]
[332505146,1721278288586,-693.25,0.00022739,2]
[332505147,1721278288596,-823.01,0.00022739,2]
[332505148,1721278288605,-764.33,0.00022739,2]
[332505149,1721278288615,-500.0,0.00022739,2]
[332505150,1721278288625,-500.0,0.00022739,2]
[332505151,1721278288634,-500.0,0.00022739,2]
[332505152,1721278288644,-512.28160917,0.00022739,2]
[332505153,1721278288654,-500.0,0.00022739,2]
[332505154,1721278288664,-882.46,0.00022739,2]
[332505155,1721278288674,-500.0,0.00022739,2]
[332505156,1721278288684,-500.0,0.00022739,2]
[332505157,1721278288693,-503.92648707,0.00022739,2]
[332505158,1721278288703,-500.0,0.00022739,2]
[332505159,1721278288713,-578.89,0.00022739,2]
[332505160,1721278288723,-500.0,0.00022739,2]
[332505161,1721278288733,-1452.14,0.00022739,2]
[332505162,1721278288743,-500.0,0.00022739,2]
[332505163,1721278288754,-500.0,0.00022739,2]
[332505164,1721278288764,-500.0,0.00022739,2]
[332505165,1721278288774,-671.89,0.00022739,2]
[332505166,1721278288784,-506.75147711,0.00022739,2]
[332505167,1721278288793,-500.0,0.00022739,2]
[332505168,1721278288804,-1112.7,0.00022739,2]
[332505169,1721278288814,-503.73312561,0.00022739,2]
[332505170,1721278288823,-1197.13,0.00022739,2]
[332505171,1721278288834,-489.2,0.00022739,2]
[332505172,1721278288844,-1138.95,0.00022739,2]
[332505173,1721278288854,-502.41830716,0.00022739,2]
[332505174,1721278288864,-568.53,0.00022739,2]
[332505175,1721278288873,-535.62,0.00022739,2]
[332505176,1721278288883,-500.0,0.00022739,2]
[332505177,1721278288894,-503.61946588,0.00022739,2]
[332505178,1721278288904,-500.0,0.00022739,2]
[332505179,1721278288914,-802.16,0.00022739,2]
[332505180,1721278288924,-369.23396236,0.00022739,2]
[332505181,1721278288933,-820.21,0.00022739,2]
[332505182,1721278288943,-500.0,0.00022739,2]
[332505183,1721278288953,-557.41,0.00022739,2]
[332505184,1721278288963,-1057.79,0.00022739,2]
[332505185,1721278288974,-500.0,0.00022739,2]
[332505186,1721278288984,-500.0,0.00022739,2]
[332505187,1721278288993,-501.7,0.00022739,2]
[332505188,1721278289003,-516.5,0.00022739,2]
[332505189,1721278289013,-1231.33,0.00022739,2]
[332505190,1721278289023,-503.18333633,0.00022739,2]
[332505191,1721278289032,-500.0,0.00022739,2]
[332505192,1721278289043,-618.81,0.00022739,2]
[332505193,1721278289057,-502.61471119,0.00022739,2]
[332505194,1721278289068,-661.58,0.00022739,2]
[332505195,1721278289078,-601.66,0.00022739,2]
[332505196,1721278289088,-500.0,0.00022739,2]
[332505197,1721278289098,-723.63,0.00022739,2]
[332505198,1721278289111,-500.0,0.00022739,2]
[332505199,1721278289121,-160.228043,0.00022739,2]
[332505200,1721278289131,-572.25,0.00022739,2]
[332505201,1721278289141,-500.0,0.00022739,2]
[332505202,1721278289152,-500.0,0.00022739,2]
[332505203,1721278289162,-1808.89,0.00022739,2]
[332505204,1721278289172,-834.24,0.00022739,2]
[332505205,1721278289182,-500.0,0.00022739,2]
[332505206,1721278289192,-595.92,0.00022739,2]
[332505207,1721278289201,-660.9,0.00022739,2]
[332505208,1721278289212,-500.0,0.00022739,2]
[332505209,1721278289221,-597.08,0.00022739,2]
[332505210,1721278289232,-1460.06,0.00022739,2]
[332505211,1721278289242,-1459.23,0.00022739,2]
[332505212,1721278289252,-502.9336788,0.00022739,2]
[332505213,1721278289262,-500.0,0.00022739,2]
[332505214,1721278289272,-500.0,0.00022739,2]
[332505215,1721278289285,-2572.0,0.00022739,2]
[332505216,1721278289295,-500.0,0.00022739,2]
[332505217,1721278289305,-500.0,0.00022739,2]
[332505218,1721278289315,-832.85,0.00022739,2]
[332505219,1721278289324,-503.82648681,0.00022739,2]
[332505220,1721278289334,-755.9,0.00022739,2]
[332505221,1721278289344,-500.0,0.00022739,2]
[332505222,1721278289357,-502.21155814,0.00022739,2]
[332505223,1721278289368,-505.43939586,0.00022739,2]
[332505224,1721278289377,-500.0,0.00022739,2]
[332505225,1721278289387,-1423.26,0.00022739,2]
[332505226,1721278289397,-500.0,0.00022739,2]
[332505227,1721278289407,-1742.5,0.00022739,2]
[332505228,1721278289417,-521.28542419,0.00022739,2]
[332505229,1721278289427,-504.47802542,0.00022739,2]
[332505230,1721278289438,-500.0,0.00022739,2]
[332505231,1721278289448,-500.0,0.00022739,2]
[332505232,1721278289459,-500.0,0.00022739,2]
[332505233,1721278289470,-500.0,0.00022739,2]
[332505234,1721278289480,-1422.17,0.00022739,2]
[332505235,1721278289490,-1493.13,0.00022739,2]
[332505236,1721278289500,-502.49018301,0.00022739,2]
[332505237,1721278289510,-500.0,0.00022739,2]
[332505238,1721278289520,-500.0,0.00022739,2]
[332505239,1721278289530,-500.0,0.00022739,2]
[332505240,1721278289540,-504.99447558,0.00022739,2]
[332505241,1721278289550,-563.05,0.00022739,2]
[332505242,1721278289560,-500.0,0.00022739,2]
[332505243,1721278289570,-5588.55,0.00022739,2]
[332505244,1721278289885,-500.0,0.00022739,2]
[332505245,1721278289914,-500.0,0.00022739,2]
[332505246,1721278289924,-681.21,0.00022739,2]
[332505247,1721278289934,-500.0,0.00022739,2]
[332505248,1721278289944,-500.0,0.00022739,2]
[332505249,1721278289954,-747.32,0.00022739,2]
[332505250,1721278289964,-562.13,0.00022739,2]
[332505251,1721278289973,-164.56359056,0.00022739,2]
[332505252,1721278289983,-500.0,0.00022739,2]
[332505253,1721278289993,-500.0,0.00022739,2]
[332505254,1721278290003,-500.77606071,0.00022739,2]
[332505255,1721278290015,-1257.47,0.00022739,2]
[332505256,1721278290025,-500.0,0.00022739,2]
[332505257,1721278290035,-500.0,0.00022739,2]
[332505258,1721278290046,-500.0,0.00022739,2]
[332505259,1721278290058,-927.3,0.00022739,2]
[332505260,1721278290067,-655.14,0.00022739,2]
[332505261,1721278290077,-500.0,0.00022739,2]
[332505262,1721278290087,-500.0,0.00022739,2]
[332505263,1721278290096,-3093.4,0.00022739,2]
[332505264,1721278290109,-500.85647648,0.00022739,2]
[332505265,1721278290118,-500.0,0.00022739,2]
[332505266,1721278290130,-500.0,0.00022739,2]
[332505267,1721278290139,-1461.68,0.00022739,2]
[332505268,1721278290149,-783.52,0.00022739,2]
[332505269,1721278290159,-1310.21,0.00022739,2]
[332505270,1721278290169,-500.0,0.00022739,2]
[332505271,1721278290180,-633.02,0.00022739,2]
[332505272,1721278290190,-500.0,0.00022739,2]
[332505273,1721278290200,-727.58,0.00022739,2]
[332505274,1721278290210,-7119.89,0.00022739,2]
[332505275,1721278290220,-11463.56,0.00022739,2]
[332505276,1721278290230,-1098.77,0.00022739,2]
[332505277,1721278290239,-151.0,0.00022739,7]
[332505278,1721278290248,-500.56246372,0.00022739,2]
[332505279,1721278290257,-634.9,0.00022739,2]
[332505280,1721278290267,-500.0,0.00022739,2]
[332505281,1721278290276,-3682.06,0.00022739,2]
[332505282,1721278290287,-899.91,0.00022739,2]
[332505283,1721278290296,-1397.74,0.00022739,2]
[332505284,1721278290306,-500.0,0.00022739,2]
[332505285,1721278290315,-151.0,0.00022739,7]
[332505286,1721278290325,-685.12,0.00022739,2]
[332505287,1721278290335,-500.0,0.00022739,2]
[332505288,1721278290344,-1434.55,0.00022739,2]
[332505289,1721278290356,-822.29,0.00022739,2]
[332505290,1721278290366,-4073.01,0.00022739,2]
[332505291,1721278290376,-500.56925372,0.00022739,2]
[332505292,1721278290386,-500.0,0.00022739,2]
[332505293,1721278290397,-896.24,0.00022739,2]
[332505294,1721278290406,-846.23,0.00022739,2]
[332505295,1721278290416,-837.4,0.00022739,2]
[332505296,1721278290426,-500.0,0.00022739,2]
[332505297,1721278290436,-927.88,0.00022739,2]
[332505298,1721278290447,-500.0,0.00022739,2]
[332505299,1721278290458,-500.0,0.00022739,2]
[332505300,1721278290467,-779.86,0.00022739,2]
[332505301,1721278290477,-693.74,0.00022739,2]
[332505302,1721278290486,-500.0,0.00022739,2]
[332505303,1721278290496,-500.0,0.00022739,2]
[332505304,1721278290506,-500.0,0.00022739,2]
[332505305,1721278290516,-473.87617374,0.00022739,2]
[332505306,1721278290526,-793.21,0.00022739,2]
[332505307,1721278290535,-1362.68,0.00022739,2]
[332505308,1721278290545,-961.59,0.00022739,2]
[332505309,1721278290555,-500.0,0.00022739,2]
[332505310,1721278290564,-500.0,0.00022739,2]
[332505311,1721278290573,-1316.54,0.00022739,2]
[332505312,1721278290583,-500.0,0.00022739,2]
[332505313,1721278290592,-966.8,0.00022739,2]
[332505314,1721278290603,-1005.28,0.00022739,2]
[332505315,1721278290612,-592.1,0.00022739,2]
[332505316,1721278290622,-502.66797788,0.00022739,2]
[332505317,1721278290632,-667.39,0.00022739,2]
[332505318,1721278290642,-500.0,0.00022739,2]
[332505319,1721278290652,-500.0,0.00022739,2]
[332505320,1721278290662,-886.95,0.00022739,2]
[332505321,1721278290671,-1086.23,0.00022739,2]
[332505322,1721278290681,-1843.41,0.00022739,2]
[332505323,1721278290691,-500.0,0.00022739,2]
[332505324,1721278290701,-9749.46,0.00022739,2]
[332505325,1721278290711,-500.0,0.00022739,2]
[332505326,1721278290721,-500.0,0.00022739,2]
[332505327,1721278290731,-1025.51,0.00022739,2]
[332505328,1721278290740,-846.53,0.00022739,2]
[332505329,1721278290750,-500.0,0.00022739,2]
[332505330,1721278290760,-151.0,0.00022739,7]
[332505331,1721278290770,-1809.01,0.00022739,2]
[332505332,1721278290779,-500.0,0.00022739,2]
[332505333,1721278290789,-873.09,0.00022739,2]
[332505334,1721278290798,-500.0,0.00022739,2]
[332505335,1721278290807,-500.0,0.00022739,2]
[332505336,1721278290817,-297.4727527,0.00022739,2]
[332505337,1721278290826,-706.38,0.00022739,2]
[332505338,1721278290835,-500.0,0.00022739,2]
[332505339,1721278290845,-151.0,0.00022739,7]
[332505340,1721278290855,-503.92704297,0.00022739,2]
[332505341,1721278290864,-552.29,0.00022739,2]
[332505342,1721278290874,-500.0,0.00022739,2]
[332505343,1721278290883,-735.15,0.00022739,2]
[332505344,1721278290893,-493.23006124,0.00022739,2]
[332505345,1721278290904,-151.0,0.00022739,7]
[332505346,1721278290913,-340.393301,0.00022739,7]
[332505347,1721278290923,-416.55461346,0.00022739,2]
[332505348,1721278290932,-232.698344,0.00022739,7]
[332505349,1721278290942,-500.0,0.00022739,2]
[332505350,1721278290950,-500.0,0.00022739,2]
[332505351,1721278290960,-500.0,0.00022739,2]
[332505352,1721278290970,-1004.02,0.00022739,2]
[332505353,1721278290980,-500.0,0.00022739,2]
[332505354,1721278290989,-500.0,0.00022739,2]
[332505355,1721278290998,-590.77,0.00022739,2]
[332505356,1721278291007,-553.09,0.00022739,2]
[332505357,1721278291017,-900.46,0.00022739,2]
[332505358,1721278291026,-340.393301,0.00022739,7]
[332505359,1721278291035,-781.98,0.00022739,2]
[332505360,1721278291047,-500.0,0.00022739,2]
[332505361,1721278291058,-505.47616162,0.00022739,2]
[332505362,1721278291067,-759.02,0.00022739,2]
[332505363,1721278291077,-1000.0,0.00022739,15]
[332505364,1721278291086,-151.0,0.00022739,7]
[332505365,1721278291096,-501.0,0.00022739,2]
[332505366,1721278291107,-500.0,0.00022739,2]
[332505367,1721278291116,-505.13127382,0.00022739,2]
[332505368,1721278291126,-501.94,0.00022739,2]
[332505369,1721278291137,-500.0,0.00022739,2]
[332505370,1721278291146,-517.39044022,0.00022739,2]
[332505371,1721278291156,-1091.46,0.00022739,2]
[332505372,1721278291167,-538.07,0.00022739,2]
[332505373,1721278291179,-500.0,0.00022739,2]
[332505374,1721278291188,-151.0,0.00022739,7]
[332505375,1721278291199,-502.45241613,0.00022739,2]
[332505376,1721278291209,-500.0,0.00022739,2]
[332505377,1721278291218,-4087.93,0.00022739,2]
[332505378,1721278291230,-500.0,0.00022739,2]
[332505379,1721278291239,-500.0,0.00022739,2]
[332505380,1721278291251,-1661.4,0.00022739,2]
[332505381,1721278291262,-759.84,0.00022739,2]
[332505382,1721278291272,-515.67399778,0.00022739,2]
[332505383,1721278291283,-3834.72,0.00022739,2]
[332505384,1721278291294,-515.26148158,0.00022739,2]
[332505385,1721278291304,-416.41617458,0.00022739,2]
[332505386,1721278291314,-505.99586686,0.00022739,2]
[332505387,1721278291323,-500.0,0.00022739,2]
[332505388,1721278291332,-500.0,0.00022739,2]
[332505389,1721278291341,-589.26,0.00022739,2]
[332505390,1721278291352,-503.77513098,0.00022739,2]
[332505391,1721278291363,-576.51,0.00022739,2]
[332505392,1721278291372,-500.0,0.00022739,2]
[332505393,1721278291384,-640.95,0.00022739,2]
[332505394,1721278291396,-500.0,0.00022739,2]
[332505395,1721278291407,-2551.4,0.00022739,2]
[332505396,1721278291416,-500.0,0.00022739,2]
[332505397,1721278291426,-660.07,0.00022739,2]
[332505398,1721278291436,-500.0,0.00022739,2]
[332505399,1721278291446,-724.54,0.00022739,2]
[332505400,1721278291455,-830.24,0.00022739,2]
[332505401,1721278291464,-521.48,0.00022739,2]
[332505402,1721278291474,-503.37177529,0.00022739,2]
[332505403,1721278291483,-500.0,0.00022739,2]
[332505404,1721278291493,-523.95,0.00022739,2]
[332505405,1721278291502,-500.0,0.00022739,2]
[332505406,1721278291511,-500.0,0.00022739,2]
[332505407,1721278291521,-500.0,0.00022739,2]
[332505408,1721278291531,-500.0,0.00022739,2]
[332505409,1721278291541,-158.933656,0.00022739,7]
[332505410,1721278291551,-500.8827933,0.00022739,2]
[332505411,1721278291560,-1771.83,0.00022739,2]
[332505412,1721278291569,-832.84,0.00022739,2]
[332505413,1721278291579,-502.09243981,0.00022739,2]
[332505414,1721278291588,-500.0,0.00022739,2]
[332505415,1721278291600,-1864.33,0.00022739,2]
[332505416,1721278291609,-500.0,0.00022739,2]
[332505417,1721278291619,-663.525383,0.00022739,7]
[332505418,1721278291629,-151.0,0.00022739,7]
[332505419,1721278291640,-500.0,0.00022739,2]
[332505420,1721278291651,-827.36,0.00022739,2]
[332505421,1721278291660,-500.0,0.00022739,2]
[332505422,1721278291670,-660.97,0.00022739,2]
[332505423,1721278291679,-158.933656,0.00022739,7]
[332505424,1721278291689,-1084.09,0.00022739,2]
[332505425,1721278291699,-500.0,0.00022739,2]
[332505426,1721278291708,-790.22,0.00022739,2]
[332505427,1721278291718,-501.7790641,0.00022739,2]
[332505428,1721278291727,-175.674848,0.00022739,7]
[332505429,1721278291736,-663.525383,0.00022739,7]
[332505430,1721278291746,-690.37,0.00022739,2]
[332505431,1721278291755,-501.86089346,0.00022739,2]
[332505432,1721278291765,-1069.06,0.00022739,2]
[332505433,1721278291775,-850.78,0.00022739,2]
[332505434,1721278291785,-625.18,0.00022739,2]
[332505435,1721278291794,-500.0,0.00022739,2]
[332505436,1721278291803,-821.43,0.00022739,2]
[332505437,1721278291812,-531.93,0.00022739,2]
[332505438,1721278291821,-500.0,0.00022739,2]
[332505439,1721278291830,-835.04,0.00022739,2]